Cogmind - Beta 11.1 @@@ ROGUE MODE // 2022.06.26 @ 19:33:01 Player: Espresso Result: Self-destructed Performance ------------- Evolutions (1) 500 Regions Visited (3) 600 Robots Destroyed (28) 140 Value Destroyed (530) 530 Prototype IDs (1) 20 Alien Tech Used (0) 0 Bonus (0) 0 TOTAL SCORE: 1790 Bonus ------- None Cogmind --------- Core Integrity 28/400 Matter 277/300 Energy 100/100 System Corruption 19% Temperature Cool (0) Movement Core (50) Location -9/Materials Parts ------- > --- POWER (1) -------- (None) > --- PROPULSION (2) --- (None) > --- UTILITY (2) ------ (None) > --- WEAPON (4) ------- (None) > --- INVENTORY (5) ---- Light Nuclear Core Compact Wheel Compact Wheel Peak State ------------ > --- POWER ------------ Heavy Ion Engine > --- PROPULSION ------- Light Treads Light Treads > --- UTILITY ---------- Medium Matter Pod High-powered Tractor Beam > --- WEAPON ----------- EM Shotgun Light Assault Rifle Light Assault Rifle > --- INVENTORY -------- Light Nuclear Core Light Nuclear Core Compact Wheel Compact Wheel EM Shotgun [Rating: 13] Favorites ----------- Power Heavy Ion Engine Engine Heavy Ion Engine Power Core Light Nuclear Core Propulsion Light Treads Treads Light Treads Wheel Compact Wheel Utility Medium Matter Pod Device High-powered Tractor Beam Storage Medium Matter Pod Weapon Light Assault Rifle Energy Gun EM Shotgun Ballistic Gun Light Assault Rifle Launcher EMP Blaster Special Weapon Mining Laser Build | -11 -10 -10 -9 ------- Run | Scr Mat Min Mat Slots Evolved 2 | . . . 2 Power . | . . . . Propulsion . | . . . . Utility . | . . . . Weapon 2 | . . . 2 Parts Attached 23 | . 2 6 15 Power 3 | . . 1 2 Engine 2 | . . 1 1 Core 1 | . . . 1 Reactor . | . . . . Propulsion 6 | . . 2 4 Treads 4 | . . . 4 Leg . | . . . . Wheel 2 | . . 2 . Hover . | . . . . Flight . | . . . . Utility 3 | . 1 1 1 Device 2 | . . 1 1 Storage 1 | . 1 . . Processor . | . . . . Hackware . | . . . . Protection . | . . . . Artifact . | . . . . Weapon 11 | . 1 2 8 Energy Gun 1 | . . . 1 Energy Cannon . | . . . . Ballistic Gun 5 | . . 2 3 Ballistic Cannon . | . . . . Launcher 4 | . . . 4 Special Weapon 1 | . 1 . . Impact Weapon . | . . . . Slashing Weapon . | . . . . Piercing Weapon . | . . . . Special Melee Weapon . | . . . . Unidentified Prototypes 1 | . . . 1 Corrupted Parts 2 | . . . 2 System Corruption 19 | . . . 19 Parts Lost 11 | . . 2 9 Power . | . . . . Propulsion . | . . . . Utility 1 | . . 1 . Weapon 10 | . . 1 9 Highest Loss Streak 2 | . . 2 2 To Critical Strikes . | . . . . Average Slot Usage (%) 59 | . 4 42 71 Engine 6 | . . 4 8 Core 1 | . . . 1 Treads 6 | . . . 9 Wheel 5 | . . 1 8 Device 5 | . . . 7 Storage 9 | . 2 14 8 Ballistic Gun 20 | . . 16 23 Launcher 2 | . . . 3 Special Weapon 1 | . 2 4 . Naked Turns 109 | . 52 . 57 Heaviest Build 16 | . 3 7 16 Greatest Support 40 | 3 3 32 40 Greatest Overweight (x) 4 | . . 2 4 Average Overweight (x) . | . . . . Largest Inventory Capacity 5 | 5 5 5 5 Average Capacity 5 | 5 5 5 5 Most Carried 5 | . . 2 5 Average Carried 2 | . . . 3 Final Capacity 5 | 5 5 5 5 Final Carried 3 | . . 2 3 Class Distribution -------------------- 50% | Mutant 37% | Scavenger-Gunner 11% | Scavenger-Mutant Dominant Class ---------------- Mutant | -10/Materials Mutant | -10/Mines Scavenger-Gunner | -9/Materials Resources | -11 -10 -10 -9 ----------- Run | Scr Mat Min Mat Matter Collected 651 | 97 . 260 294 Remotely 225 | . . . 225 Salvage Created 995 | . . 415 580 Parts 69 | . . 24 45 Haulers Intercepted . | . . . . Recyclers Shooed 4 | . . 4 . Parts Field Recycled . | . . . . Retrieved Matter . | . . . . Parts Self-Destructed . | . . . . Prevented . | . . . . Kills | -11 -10 -10 -9 ------- Run | Scr Mat Min Mat Combat Hostiles Destroyed 20 | . . 5 15 Melee 1 | . . 1 . Guns 11 | . . 3 8 Cannons 1 | . . 1 . AOE 7 | . . . 7 Classes Destroyed 6 | . . 3 3 Worker 2 | . . . 2 Builder 2 | . . . 2 Recycler 4 | . . 4 . Swarmer 11 | . . 3 8 Grunt 4 | . . 2 2 Sentry 5 | . . . 5 Best Kill Streak 8 | . . 6 8 Combat Bots Only 7 | . . 2 7 Max Kills in Single Turn 5 | . . 1 5 Gunslinging . | . . . . Exploded 4 | . . . 4 Melee 1 | . . 1 . Uniques/NPCs Destroyed . | . . . . Combat | -11 -10 -10 -9 -------- Run | Scr Mat Min Mat Damage Taken 1590 | . . 392 1198 Core 606 | . . 234 372 Absorbed by Shields . | . . . . Core Remaining (%) 53 | 100 . 6 . Volleys Fired 78 | . 1 34 43 Largest 4 | . 1 2 4 Hottest 100 | . 100 100 99 Shots Fired 180 | . 1 59 120 Gun 159 | . . 53 106 Cannon . | . . . . Launcher 14 | . . . 14 Special 7 | . 1 6 . Kinetic 158 | . . 53 105 Thermal 7 | . 1 6 . Explosive . | . . . . Electromagnetic 15 | . . . 15 Robot Hit Streak 9 | . . 9 8 Robot Miss Streak 4 | . . 2 4 Penetration Max . | . . . . Secondary Targets . | . . . . Shots Hit Robots 84 | . . 36 48 Core Hits 56 | . . 23 33 Critical Kills . | . . . . Critical Parts Destroyed 3 | . . 2 1 Critical Strikes 3 | . . 2 1 Destroy 3 | . . 2 1 Melee Attacks . | . . . . Impact . | . . . . Slashing . | . . . . Piercing . | . . . . Sneak Attacks . | . . . . Combat Hostiles . | . . . . Follow-up Attacks . | . . . . Damage Inflicted 1319 | . . 375 944 Guns 647 | . . 296 351 Cannons . | . . . . Explosions 574 | . . . 574 Melee . | . . . . Ramming 74 | . . 55 19 Kinetic 647 | . . 296 351 Thermal 168 | . . 24 144 Explosive . | . . . . Electromagnetic 430 | . . . 430 Impact . | . . . . Slashing . | . . . . Piercing . | . . . . Highest Corruption 19 | . . . 19 Average Corruption 18 | . . . 18 Corruption Purged . | . . . . Corruption Blocked . | . . . . Effects 3 | . . . 3 Message Errors 1 | . . . 1 Heat Flow Errors 1 | . . . 1 Misdirections 1 | . . . 1 Overload Shots . | . . . . Overflow Damage 36 | . . . 36 Projectiles . | . . . . Explosions 36 | . . . 36 Melee . | . . . . Knockbacks 1 | . . . 1 Impact 1 | . . . 1 Kinetic . | . . . . Secondary . | . . . . Self-Inflicted Damage 84 | . . 25 59 Shots 4 | . . . 4 Rammed 19 | . . 15 4 Targets Rammed 19 | . . 15 4 Kicked . | . . . . Crushed . | . . . . Highest Temperature 282 | . . 25 282 Average Temperature 54 | . . 11 63 Received Heat Transfer 405 | . . 126 279 Effects 1 | . . . 1 Energy Bleed 1 | . . . 1 Siege Activations . | . . . . Robots Corrupted . | . . . . Combat Hostiles . | . . . . Parts Fried 2 | . . . 2 Impact Corruptions . | . . . . Robots Melted . | . . . . Combat Hostiles . | . . . . Parts Melted . | . . . . Heat Transferred 350 | . . 50 300 Parts Sabotaged . | . . . . Parts Stolen . | . . . . Parts Stripped . | . . . . Power Chain Reactions 5 | . . . 5 Missiles Intercepted . | . . . . Alert | -11 -10 -10 -9 ------- Run | Scr Mat Min Mat Peak Influence 348 | . 15 152 348 Initial 59 | . . 5 59 Average 146 | . 3 78 189 Maximum Alert Level 1 | . . . 1 Low Security (%) 62 | 100 100 100 44 Level 1 37 | . . . 55 Level 2 . | . . . . Level 3 . | . . . . Level 4 . | . . . . Level 5 . | . . . . High Security . | . . . . Max Security . | . . . . Squads Dispatched 1 | . . . 1 Investigation . | . . . . Extermination . | . . . . Reinforcement 1 | . . . 1 Assault . | . . . . Garrison . | . . . . Intercept . | . . . . Searches Triggered . | . . . . Construction Impeded . | . . . . Haulers Reinforced . | . . . . Active Scanning Responses . | . . . . Cargo Convoy Interrupts . | . . . . Stealth | -11 -10 -10 -9 --------- Run | Scr Mat Min Mat Distress Signals 3 | . . 1 2 Communications Jammed . | . . . . Distress Signals . | . . . . Times Spotted 30 | . 2 6 22 Peak Tracking Total 8 | . 2 3 8 Tactical Retreats 4 | . . 1 3 Traps | -11 -10 -10 -9 ------- Run | Scr Mat Min Mat Traps Triggered 3 | . . . 3 Indirectly 3 | . . . 3 Trap Hack Attempts . | . . . . Triggered . | . . . . Disarmed . | . . . . Reprogrammed . | . . . . Reused . | . . . . Traps Extracted . | . . . . Installed . | . . . . Triggered . | . . . . Machines | -11 -10 -10 -9 ---------- Run | Scr Mat Min Mat Machines Disabled 2 | . 1 . 1 Max in Single Turn 1 | . 1 . 1 Machines Sabotaged . | . . . . Garrisons Compromised . | . . . . Overloaded Fab Kills . | . . . . Hacking | -11 -10 -10 -9 --------- Run | Scr Mat Min Mat Machines Accessed 1 | . . . 1 Terminals . | . . . . Fabricators . | . . . . Repair Stations . | . . . . Recycling Units 1 | . . . 1 Scanalyzers . | . . . . Garrison Access . | . . . . Total Hacks 4 | . . . 4 Successful 2 | . . . 2 Failed 2 | . . . 2 Catastrophic . | . . . . Database Lockouts . | . . . . Manual . | . . . . Terminals . | . . . . Fabricators . | . . . . Repair Stations . | . . . . Recycling Units 4 | . . . 4 Scanalyzers . | . . . . Garrison Access . | . . . . Terminal Hacks . | . . . . Fabricator Hacks . | . . . . Repair Station Hacks . | . . . . Recycling Unit Hacks 2 | . . . 2 Report Inventory 1 | . . . 1 Retrieve Components 1 | . . . 1 Scanalyzer . | . . . . Garrison Access Hacks . | . . . . Unauthorized Hacks . | . . . . Terminals . | . . . . Fabricators . | . . . . Repair Stations . | . . . . Recycling Units . | . . . . Scanalyzers . | . . . . Garrison Access . | . . . . Data Cores Recovered . | . . . . Used . | . . . . Hacking Detections . | . . . . Full Trace Events . | . . . . Feedback Events . | . . . . Feedback Blocked . | . . . . Robot Schematics Acquired . | . . . . Robots Built . | . . . . Authchips . | . . . . Time . | . . . . Total Robot Build Rating . | . . . . Part Schematics Acquired . | . . . . Parts Built . | . . . . Authchips . | . . . . Time . | . . . . Total Part Build Rating . | . . . . Parts Repaired . | . . . . Time . | . . . . Parts Recycled . | . . . . Recycled Matter . | . . . . Retrieved Matter . | . . . . Retrieved Components 1 | . . . 1 Parts Scanalyzed . | . . . . Part Schematics Acquired . | . . . . Parts Damaged . | . . . . Bothacking | -11 -10 -10 -9 ------------ Run | Scr Mat Min Mat Used RIF Installer . | . . . . Robots Hacked . | . . . . Non-combat . | . . . . Combat . | . . . . Robot Hacks Applied . | . . . . Relay Couplers Released . | . . . . Fabnet Peak Effective % . | . . . . Robots Rewired . | . . . . Allies Hacked . | . . . . Hacks Repelled . | . . . . Allies | -11 -10 -10 -9 -------- Run | Scr Mat Min Mat Total Allies . | . . . . Largest Group . | . . . . Highest-Rated Group . | . . . . Highest-Rated Ally . | . . . . Total Orders . | . . . . Ally Attacks . | . . . . Total Damage . | . . . . Kills . | . . . . Allies Corrupted . | . . . . Allies Melted . | . . . . Intel | -11 -10 -10 -9 ------- Run | Scr Mat Min Mat Robot Analysis Total . | . . . . Derelict Logs Recovered . | . . . . Drone Launches . | . . . . Drone Recoveries . | . . . . Exploration | -11 -10 -10 -9 ------------- Run | Scr Mat Min Mat Turns Passed 860 | 12 62 203 583 Spaces Moved 598 | 24 109 102 363 Core 342 | 24 109 87 122 Treads 124 | . . . 124 Legs . | . . . . Wheels 132 | . . 15 117 Hover . | . . . . Flight . | . . . . Fastest Speed 50 | 50 50 50 50 Average Speed 91 | 50 50 78 111 Slowest Speed 250 | 50 50 150 250 Overloaded Moves . | . . . . Propulsion Burnouts . | . . . . Robots Hopped . | . . . . Cave-ins Triggered . | . . . . Exploration Rate (%) 24 | 4 27 26 39 Regions Visited 3 Branch Regions 1 Pre-discovered Areas . | . . . . Known Exits Taken . | . . . . Unknown Exits Taken 3 | 1 1 1 . Scrap Searched . | . . . . Spaces Dug 4 | . . 4 . Terrain Destroyed 17 | . . 4 13 Melee . | . . . . Projectile 4 | . . 4 . AOE 13 | . . . 13 Terrain Rammed . | . . . . Walls Destroyed . | . . . . Machines Disabled . | . . . . Actions | -11 -10 -10 -9 --------- Run | Scr Mat Min Mat Total 762 | 23 111 161 467 Wait 34 | . . 3 31 Move 595 | 23 108 101 363 Hop . | . . . . Pick Up 9 | . . 2 7 Fast Attach 17 | . 2 6 9 Attach 3 | . . . 3 Detach . | . . . . Swap 3 | . . . 3 Drop 4 | . . . 4 Fire 78 | . 1 34 43 Melee . | . . . . Ram 18 | . . 15 3 Kick . | . . . . Crush 1 | . . . 1 Escape Stasis . | . . . . Rewire . | . . . . Trap . | . . . . Miscellaneous . | . . . . Route ------- -11/Scrapyard -10/Materials -10/Mines -9/Materials History --------- Turn | Location | Event 2 | -11/Scrapyard | Discovered new exit (range 16) 13 | -11/Scrapyard | Entered Materials 60 | -10/Materials | Discovered new exit (range 9) 75 | -10/Materials | Entered Mines 214 | -10/Mines | Core integrity fell below 50% 233 | -10/Mines | Core integrity fell below 20% 271 | -10/Mines | Discovered new exit (range 8) 278 | -10/Mines | Entered Materials 278 | -9/Materials | Evolved 2 slots: Weapon x2 716 | -9/Materials | Released all parts (5) 730 | -9/Materials | Core integrity fell below 50% 815 | -9/Materials | Destroyed 7 combat bots 820 | -9/Materials | System corruption reached 10% 831 | -9/Materials | Core integrity fell below 20% 841 | -9/Materials | Released all parts (3) 861 | -9/Materials | Self-destructed Last Messages --------------- K-01 Serf collects debris. Door malfunctions. U-05 Engineer lays Concrete. Overheating: Energy bleed (-18). U-05 Engineer lays Concrete. Door malfunctions. U-05 Engineer destroyed. Scanalyzer disabled. Chain reaction triggered in Corrupted Lgt. Ion Engine. K-01 Serf destroyed. EMP Blaster destroyed. Destroyed EMP Blaster. Critical hit (Burn: +37). K-01 Serf collects debris. EMP Blaster destroyed. P4R,X LGZAYPJOI>UT%Z6LQOZZW5XVV<&MG4J# Released Lgt. Treads. Released Lgt. Nuclear Core. Released Lgt. Treads. Slammed into T-07 Excavator. Map ----- +----------------------------------------------------+ | ?????????????#%|!! ## ###???? | | ???????#########/##########/####### #??#?????? | | ???????# ===#????????????????### ###????????? | | ???????# *#??????????????????# #??????????? | | ???????# #??????????????????# #??????????? | | ???????# !! S"#??????????????????# #??????????? | | ??????## !! #?????????????###### #??????????? | | ??????# ! #?????????????# ## #??????????? | | ??????## #####?????????+ [ #??????????? | | ???????# / / "???# ####??????????? | | ???#########+###+###### ??## ##?????????????? | | ???# #?###########??# #??????????????? | | ???# #?# **#??# #??????????????? | | ???# ### **#??# #??????????????? | | ???# *! !!#??# #??????????????? | | ???# ###== !!#??# #??????????????? | | ???# """ !!! #?#! !!#??# #??????????????? | | ???# """ !!! #?## ## !!#??# #??????????????? | | ? """ !! #??# ######?## ##?????????????? | | #??# ### ### #?????? | | #??# T +?????? | | ################ #??# ### ### #?????? | | ???????????????# #??#######+########???? #?????? | | #############??# #??#* #????????#?????? | | #??# #??# #??????????????? | | #??# #??# @ t #??????????????? | | """ #??# #??# #??????????????? | | """ #??# #??# #??????#######?? | | # """ #??# #??# ! #??????# #?? | | # #??# #??###################### [ #?? | | # #??# #????????????# + #?? | | # [// #??# #??????#######[ T ## #?? | | # // ####%######## #=! ## #?? | | /// # ** #### ###?? | | + """ """ #??# #???? | | = # """ """ #??# #???? | | ##### ######+### # # """ """ #??# #???? | | ????# ## % ## * ## ##^ #??# #???? | | ????# ## """ ##!!****## ##+#########??# #???? | | ????# ## """ ##!!** *## #??????????# #???? | | ????# ## """ ########## #??????????# #???? | | ????# ?# #????????# [[ #??????????#!#???? | | ????# ?# #????????# ############ #???? | | ????# ?########????????# ## #???? | | ????# ?????????????????# ## #???? | | ????+ ?????????????????# ## """" #???? | | ????# ?????????????????# ## """" ##???? | | ????# ?????????????????# ## """" #????? | | ?????????????????????????# ### #????? | | ?????????????????????????+ #?# #????? | +----------------------------------------------------+ Best States ------------- Heat Dissipation 28 Energy Generation 14 Energy Capacity 280 Matter Stores 400 Matter Capacity 400 Sight Range 16 Terrain Scan Density 10 Evasion (%) 50 Recoil Reduction 2 Item Schematics ----------------- None Robot Schematics ------------------ None Fabricated ------------ Nothing Alien Tech Used ----------------- None Achievements -------------- Close Call System Compromised Challenges ------------ None Game ------ Seed RecoilPhysicsSaw Manual? 0 Play Time 00:10:44 Cumulative 2.3 hours Start 2022.06.26 @ 19:24:11 End 2022.06.26 @ 19:33:01 Sessions 1 Manual Loads 0 Difficulty Rogue Special Mode None Game No. 15 Rogue 15 Adventurer 0 Explorer 0 Win Type - Total 0 Types 0/0/0/0/0/0/0/0/0 Lore% 5 Gallery% 10 Achievement% 17 Wizard Run 0 Options --------- ASCII 0 Keyboard 0 Movement Numpad Keybinds 0 Fullscreen 1 Font 24/Terminus Map View 76x50 Tactical HUD 0 Map Filters NONE Filters NONE Steam 1 RUN: 6cec5de7-6b2f-44cb-b3c3-414265f31ce6